fUSD/lending_fUSD_20240619
["ID","MTS","AMOUNT","RATE_DAILY","PERIOD"]
[329916268,1718830247510,-500.0,0.00013698,2]
[329916269,1718830247519,-500.0,0.00013698,2]
[329916270,1718830247528,-1848.32,0.00013698,2]
[329916271,1718830247537,-500.0,0.00013698,2]
[329916272,1718830247547,-500.0,0.00013698,2]
[329916273,1718830247556,-500.0,0.00013698,2]
[329916274,1718830247568,-500.0,0.00013698,2]
[329916275,1718830247577,-869.42,0.00013698,2]
[329916276,1718830247587,-500.0,0.00013698,2]
[329916277,1718830247597,-500.0,0.00013698,2]
[329916278,1718830247606,-1006.35,0.00013698,2]
[329916279,1718830247616,-500.0,0.00013698,2]
[329916280,1718830247625,-500.0,0.00013698,2]
[329916281,1718830247634,-500.0,0.00013698,2]
[329916282,1718830247643,-151.0,0.00013698,2]
[329916283,1718830247652,-500.0,0.00013698,2]
[329916284,1718830247661,-151.0,0.00013698,2]
[329916285,1718830247670,-199.602561,0.00013698,2]
[329916286,1718830247679,-500.0,0.00013698,2]
[329916287,1718830247688,-1282.85,0.00013698,2]
[329916288,1718830247697,-500.0,0.00013698,2]
[329916289,1718830247706,-1309.13,0.00013698,2]
[329916290,1718830247715,-500.0,0.00013698,2]
[329916291,1718830247725,-500.0,0.00013698,2]
[329916292,1718830247734,-1293.77,0.00013698,2]
[329916293,1718830247743,-151.0,0.00013698,2]
[329916294,1718830247752,-534.12786812,0.00013698,2]
[329916295,1718830247761,-846.88,0.00013698,2]
[329916297,1718830247771,-1714.23,0.00013698,2]
[329916299,1718830247780,-1856.19,0.00013698,2]
[329916301,1718830247793,-840.79,0.00013698,2]
[329916303,1718830247802,-500.0,0.00013698,2]
[329916305,1718830247811,-500.0,0.00013698,2]
[329916308,1718830247823,-500.0,0.00013698,2]
[329916310,1718830247832,-500.0,0.00013698,2]
[329916312,1718830247841,-500.0,0.00013698,2]
[329916314,1718830247850,-500.0,0.00013698,2]
[329916316,1718830247859,-500.0,0.00013698,2]
[329916318,1718830247868,-500.0,0.00013698,2]
[329916320,1718830247878,-500.0,0.00013698,2]
[329916322,1718830247888,-500.0,0.00013698,2]
[329916324,1718830247904,-500.0,0.00013698,2]
[329916326,1718830247914,-500.0,0.00013698,2]
[329916328,1718830247923,-500.0,0.00013698,2]
[329916330,1718830247933,-1096.07,0.00013698,2]
[329916332,1718830247943,-500.0,0.00013698,2]
[329916334,1718830247953,-500.0,0.00013698,2]
[329916336,1718830247962,-500.0,0.00013698,2]
[329916338,1718830247971,-500.0,0.00013698,2]
[329916340,1718830247982,-532.19251101,0.00013698,2]
[329916342,1718830247993,-511.24,0.00013698,2]
[329916343,1718830248003,-500.0,0.00013698,2]
[329916346,1718830248013,-500.0,0.00013698,2]
[329916347,1718830248023,-500.0,0.00013698,2]
[329916349,1718830248032,-500.0,0.00013698,2]
[329916352,1718830248043,-500.0,0.00013698,2]
[329916353,1718830248051,-500.0,0.00013698,2]
[329916355,1718830248062,-500.0,0.00013698,2]
[329916358,1718830248073,-565.8,0.00013698,2]
[329916360,1718830248082,-500.0,0.00013698,2]
[329916362,1718830248091,-500.0,0.00013698,2]
[329916363,1718830248100,-261.43610471,0.00013698,2]
[329916365,1718830248110,-500.0,0.00013698,2]
[329916367,1718830248119,-500.0,0.00013698,2]
[329916370,1718830248128,-611.49,0.00013698,2]
[329916371,1718830248137,-528.1,0.00013698,2]
[329916373,1718830248148,-500.0,0.00013698,2]
[329916375,1718830248157,-780.16,0.00013698,2]
[329916376,1718830248166,-500.0,0.00013698,2]
[329916378,1718830248175,-500.0,0.00013698,2]
[329916380,1718830248184,-500.0,0.00013698,2]
[329916381,1718830248194,-1811.23,0.00013698,2]
[329916383,1718830248203,-1273.9,0.00013698,2]
[329916385,1718830248212,-500.0,0.00013698,2]
[329916387,1718830248220,-890.8,0.00013698,2]
[329916388,1718830248230,-500.0,0.00013698,2]
[329916390,1718830248239,-500.0,0.00013698,2]
[329916392,1718830248248,-500.0,0.00013698,2]
[329916393,1718830248257,-500.0,0.00013698,2]
[329916395,1718830248267,-500.0,0.00013698,2]
[329916397,1718830248276,-500.0,0.00013698,2]
[329916399,1718830248285,-1904.99,0.00013698,2]
[329916400,1718830248294,-1421.48,0.00013698,2]
[329916402,1718830248304,-500.0,0.00013698,2]
[329916403,1718830248315,-785.34,0.00013698,2]
[329916405,1718830248324,-1983.7,0.00013698,2]
[329916407,1718830248334,-500.0,0.00013698,2]
[329916409,1718830248344,-603.54,0.00013698,2]
[329916411,1718830248354,-500.0,0.00013698,2]
[329916412,1718830248363,-500.0,0.00013698,2]
[329916414,1718830248373,-500.0,0.00013698,2]
[329916416,1718830248383,-500.0,0.00013698,2]
[329916418,1718830248392,-1280.7,0.00013698,2]
[329916419,1718830248401,-500.0,0.00013698,2]
[329916421,1718830248410,-500.0,0.00013698,2]
[329916423,1718830248420,-500.0,0.00013698,2]
[329916425,1718830248429,-500.0,0.00013698,2]
[329916426,1718830248438,-500.0,0.00013698,2]
[329916428,1718830248448,-151.0,0.00013698,2]
[329916430,1718830248457,-500.0,0.00013698,2]
[329916432,1718830248467,-500.0,0.00013698,2]
[329916434,1718830248476,-500.0,0.00013698,2]
[329916435,1718830248485,-500.0,0.00013698,2]
[329916437,1718830248495,-500.0,0.00013698,2]
[329916439,1718830248505,-553.52,0.00013698,2]
[329916441,1718830248514,-500.0,0.00013698,2]
[329916442,1718830248524,-500.0,0.00013698,2]
[329916444,1718830248534,-500.0,0.00013698,2]
[329916446,1718830248544,-500.0,0.00013698,2]
[329916448,1718830248553,-198.72,0.00013698,2]
[329916450,1718830248562,-500.0,0.00013698,2]
[329916451,1718830248573,-500.0,0.00013698,2]
[329916453,1718830248583,-1893.4,0.00013698,2]
[329916455,1718830248592,-500.0,0.00013698,2]
[329916457,1718830248602,-1077.07,0.00013698,2]
[329916459,1718830248611,-500.0,0.00013698,2]
[329916461,1718830248621,-500.0,0.00013698,2]
[329916462,1718830248630,-500.0,0.00013698,2]
[329916464,1718830248639,-500.0,0.00013698,2]
[329916466,1718830248649,-500.0,0.00013698,2]
[329916468,1718830248659,-1580.07,0.00013698,2]
[329916470,1718830248668,-500.0,0.00013698,2]
[329916472,1718830248678,-500.0,0.00013698,2]
[329916473,1718830248687,-500.0,0.00013698,2]
[329916475,1718830248696,-712.5,0.00013698,2]
[329916477,1718830248706,-155.0,0.00013698,2]
[329916479,1718830248716,-1977.58,0.00013698,2]
[329916481,1718830248726,-545.98473496,0.00013698,2]
[329916482,1718830248735,-151.948679,0.00013698,2]
[329916484,1718830248745,-151.550154,0.00013698,2]
[329916486,1718830248755,-500.0,0.00013698,2]
[329916488,1718830248764,-500.0,0.00013698,2]
[329916489,1718830248773,-500.0,0.00013698,2]
[329916491,1718830248783,-253.289178,0.00013698,2]
[329916493,1718830248792,-500.0,0.00013698,2]
[329916495,1718830248802,-912.36,0.00013698,2]
[329916497,1718830248811,-723.3,0.00013698,2]
[329916499,1718830248822,-20000.0,0.00013698,2]
[329916500,1718830248832,-500.0,0.00013698,2]
[329916502,1718830248841,-648.29,0.00013698,2]
[329916504,1718830248851,-1512.63,0.00013698,2]
[329916506,1718830248860,-500.0,0.00013698,2]
[329916508,1718830248870,-500.0,0.00013698,2]
[329916510,1718830248879,-500.0,0.00013698,2]
[329916512,1718830248889,-500.0,0.00013698,2]
[329916513,1718830248899,-500.0,0.00013698,2]
[329916515,1718830248914,-500.0,0.00013698,2]
[329916517,1718830248923,-521.94755589,0.00013698,2]
[329916519,1718830248932,-500.0,0.00013698,2]
[329916521,1718830248943,-1754.9,0.00013698,2]
[329916523,1718830248952,-151.0,0.00013698,2]
[329916524,1718830248961,-500.0,0.00013698,2]
[329916526,1718830248970,-151.0,0.00013698,2]
[329916528,1718830248980,-500.0,0.00013698,2]
[329916530,1718830248990,-1041.63,0.00013698,2]
[329916532,1718830249001,-500.0,0.00013698,2]
[329916534,1718830249010,-500.0,0.00013698,2]
[329916536,1718830249020,-863.86,0.00013698,2]
[329916538,1718830249029,-675.48,0.00013698,2]
[329916539,1718830249038,-500.0,0.00013698,2]
[329916541,1718830249048,-500.0,0.00013698,2]
[329916543,1718830249057,-500.0,0.00013698,2]
[329916545,1718830249068,-500.0,0.00013698,2]
[329916547,1718830249077,-1091.19,0.00013698,2]
[329916549,1718830249086,-500.0,0.00013698,2]
[329916551,1718830249096,-500.0,0.00013698,2]
[329916552,1718830249104,-500.0,0.00013698,2]
[329916554,1718830249113,-500.0,0.00013698,2]
[329916556,1718830249123,-500.0,0.00013698,2]
[329916558,1718830249132,-467.70918137,0.00013698,2]
[329916560,1718830249141,-500.0,0.00013698,2]
[329916562,1718830249151,-794.43,0.00013698,2]
[329916564,1718830249160,-591.69,0.00013698,2]
[329916566,1718830249170,-2018.11,0.00013698,2]
[329916568,1718830249179,-500.0,0.00013698,2]
[329916570,1718830249188,-500.0,0.00013698,2]
[329916572,1718830249197,-1545.62,0.00013698,2]
[329916574,1718830249206,-500.0,0.00013698,2]
[329916576,1718830249215,-500.0,0.00013698,2]
[329916578,1718830249224,-513.76833958,0.00013698,2]
[329916580,1718830249234,-500.0,0.00013698,2]
[329916582,1718830249243,-516.87,0.00013698,2]
[329916584,1718830249252,-500.0,0.00013698,2]
[329916586,1718830249262,-500.0,0.00013698,2]
[329916588,1718830249271,-500.0,0.00013698,2]
[329916589,1718830249280,-500.0,0.00013698,2]
[329916590,1718830249290,-1195.92,0.00013698,2]
[329916591,1718830249300,-511.80903401,0.00013698,2]
[329916592,1718830249309,-880.82,0.00013698,2]
[329916593,1718830249319,-500.0,0.00013698,2]
[329916594,1718830249328,-500.0,0.00013698,2]
[329916595,1718830249337,-500.0,0.00013698,2]
[329916596,1718830249346,-664.61,0.00013698,2]
[329916597,1718830249355,-500.0,0.00013698,2]
[329916598,1718830249364,-500.51943746,0.00013698,2]
[329916599,1718830249374,-500.0,0.00013698,2]
[329916600,1718830249383,-1684.84,0.00013698,2]
[329916601,1718830249393,-500.0,0.00013698,2]
[329916602,1718830249402,-758.46,0.00013698,2]
[329916604,1718830249412,-500.0,0.00013698,2]
[329916605,1718830249421,-500.0,0.00013698,2]
[329916607,1718830249431,-837.34,0.00013698,2]
[329916609,1718830249441,-500.0,0.00013698,2]
[329916612,1718830249451,-349.72067749,0.00013698,2]
[329916614,1718830249460,-500.0,0.00013698,2]
[329916615,1718830249469,-500.0,0.00013698,2]
[329916618,1718830249479,-1359.7,0.00013698,2]
[329916620,1718830249488,-500.0,0.00013698,2]
[329916622,1718830249497,-500.0,0.00013698,2]
[329916623,1718830249506,-500.0,0.00013698,2]
[329916625,1718830249516,-500.0,0.00013698,2]
[329916628,1718830249526,-2153.15,0.00013698,2]
[329916629,1718830249535,-500.0,0.00013698,2]
[329916632,1718830249544,-500.0,0.00013698,2]
[329916634,1718830249554,-500.0,0.00013698,2]
[329916635,1718830249565,-500.0,0.00013698,2]
[329916638,1718830249574,-929.51,0.00013698,2]
[329916640,1718830249583,-1028.5,0.00013698,2]
[329916642,1718830249593,-500.0,0.00013698,2]
[329916644,1718830249603,-500.0,0.00013698,2]
[329916645,1718830249612,-500.0,0.00013698,2]
[329916648,1718830249622,-1389.63,0.00013698,2]
[329916650,1718830249632,-500.0,0.00013698,2]
[329916652,1718830249641,-904.92,0.00013698,2]
[329916654,1718830249650,-500.0,0.00013698,2]
[329916655,1718830249660,-500.0,0.00013698,2]
[329916658,1718830249670,-500.0,0.00013698,2]
[329916660,1718830249680,-729.61,0.00013698,2]
[329916662,1718830249689,-151.0,0.00013698,2]
[329916664,1718830249698,-152.398134,0.00013698,2]
[329916666,1718830249708,-1270.83,0.00013698,2]
[329916668,1718830249717,-500.0,0.00013698,2]
[329916670,1718830249726,-500.0,0.00013698,2]
[329916672,1718830249736,-500.0,0.00013698,2]
[329916674,1718830249745,-500.0,0.00013698,2]
[329916676,1718830249755,-500.0,0.00013698,2]
[329916678,1718830249764,-500.0,0.00013698,2]
[329916680,1718830249773,-500.0,0.00013698,2]
[329916682,1718830249783,-590.11,0.00013698,2]
[329916684,1718830249792,-500.0,0.00013698,2]
[329916686,1718830249801,-1053.8,0.00013698,2]
[329916688,1718830249811,-500.0,0.00013698,2]
[329916690,1718830249821,-500.0,0.00013698,2]
[329916692,1718830249831,-945.46,0.00013698,2]
[329916694,1718830249840,-500.0,0.00013698,2]
[329916696,1718830249850,-500.0,0.00013698,2]
[329916698,1718830249860,-657.34,0.00013698,2]
[329916700,1718830249869,-500.0,0.00013698,2]
[329916702,1718830249879,-1341.85,0.00013698,2]
[329916704,1718830249889,-500.0,0.00013698,2]
[329916706,1718830249901,-1309.38,0.00013698,2]
[329916708,1718830249910,-937.72,0.00013698,2]
[329916710,1718830249919,-500.0,0.00013698,2]
[329916712,1718830249929,-681.27,0.00013698,2]
[329916713,1718830249939,-585.15,0.00013698,2]
[329916715,1718830249948,-647.37,0.00013698,2]
[329916717,1718830249958,-500.0,0.00013698,2]
[329916720,1718830249967,-500.0,0.00013698,2]
[329916722,1718830249976,-711.83,0.00013698,2]
[329916724,1718830249989,-500.0,0.00013698,2]
[329916726,1718830249999,-500.0,0.00013698,2]
[329916728,1718830250008,-500.0,0.00013698,2]
[329916730,1718830250018,-1385.2,0.00013698,2]
[329916732,1718830250027,-500.0,0.00013698,2]
[329916734,1718830250037,-500.0,0.00013698,2]
[329916736,1718830250046,-500.0,0.00013698,2]
[329916738,1718830250055,-1481.38,0.00013698,2]
[329916740,1718830250066,-500.0,0.00013698,2]
[329916742,1718830250076,-500.0,0.00013698,2]
[329916744,1718830250086,-573.25,0.00013698,2]
[329916746,1718830250095,-500.0,0.00013698,2]
[329916748,1718830250104,-634.79,0.00013698,2]
[329916750,1718830250113,-500.0,0.00013698,2]
[329916752,1718830250122,-500.0,0.00013698,2]
[329916754,1718830250132,-500.0,0.00013698,2]
[329916756,1718830250141,-500.0,0.00013698,2]
[329916758,1718830250150,-500.0,0.00013698,2]
[329916760,1718830250160,-635.84,0.00013698,2]
[329916762,1718830250169,-929.48,0.00013698,2]
[329916764,1718830250178,-500.0,0.00013698,2]
[329916766,1718830250187,-151.0,0.00013698,2]
[329916768,1718830250196,-500.0,0.00013698,2]
[329916770,1718830250206,-500.0,0.00013698,2]
[329916772,1718830250215,-500.0,0.00013698,2]
[329916774,1718830250225,-741.73,0.00013698,2]
[329916776,1718830250234,-151.0,0.00013698,2]
[329916778,1718830250243,-500.0,0.00013698,2]
[329916780,1718830250253,-151.0,0.00013698,2]
[329916782,1718830250262,-1826.65,0.00013698,2]
[329916784,1718830250272,-154.278308,0.00013698,2]
[329916786,1718830250282,-647.33,0.00013698,2]
[329916788,1718830250291,-500.0,0.00013698,2]
[329916790,1718830250300,-500.0,0.00013698,2]
[329916792,1718830250309,-252.34810818,0.00013698,2]
[329916794,1718830250320,-500.0,0.00013698,2]
[329916796,1718830250330,-500.0,0.00013698,2]
[329916798,1718830250339,-500.0,0.00013698,2]
[329916800,1718830250349,-500.0,0.00013698,2]
[329916802,1718830250358,-505.25166295,0.00013698,2]
[329916804,1718830250368,-500.0,0.00013698,2]
[329916806,1718830250378,-500.0,0.00013698,2]
[329916808,1718830250387,-500.0,0.00013698,2]
[329916810,1718830250397,-500.0,0.00013698,2]
[329916812,1718830250406,-1238.86,0.00013698,2]
[329916814,1718830250416,-1000.0,0.00013698,2]
[329916816,1718830250426,-500.0,0.00013698,2]
[329916818,1718830250435,-500.0,0.00013698,2]
[329916820,1718830250444,-1338.26,0.00013698,2]
[329916822,1718830250454,-1419.73,0.00013698,2]
[329916824,1718830250463,-500.0,0.00013698,2]
[329916826,1718830250473,-1222.84,0.00013698,2]
[329916828,1718830250483,-500.0,0.00013698,2]
[329916854,1718830250715,-500.0,0.00013698,2]
[329916857,1718830250727,-500.0,0.00013698,2]
[329916859,1718830250738,-500.0,0.00013698,2]
[329916861,1718830250747,-500.0,0.00013698,2]
[329916862,1718830250756,-151.54792,0.00013698,2]
[329916865,1718830250766,-201.88317083,0.00013698,2]
[329916867,1718830250776,-1731.9,0.00013698,2]
[329916869,1718830250785,-500.0,0.00013698,2]
[329916871,1718830250795,-1572.13,0.00013698,2]
[329916873,1718830250804,-500.29366372,0.00013698,2]
[329916875,1718830250814,-500.0,0.00013698,2]
[329916877,1718830250824,-500.0,0.00013698,2]
[329916879,1718830250834,-500.0,0.00013698,2]
[329916881,1718830250844,-876.55,0.00013698,2]
[329916883,1718830250853,-839.94,0.00013698,2]
[329916885,1718830250863,-502.84938282,0.00013698,2]
[329916887,1718830250873,-340.79412298,0.00013698,2]
[329916889,1718830250883,-500.0,0.00013698,2]
[329916891,1718830250892,-500.0,0.00013698,2]
[329916893,1718830250903,-500.0,0.00013698,2]
[329916895,1718830250915,-520.38129528,0.00013698,2]
[329916897,1718830250924,-500.0,0.00013698,2]
[329916899,1718830250933,-500.0,0.00013698,2]
[329916901,1718830250942,-500.0,0.00013698,2]
[329916903,1718830250954,-1442.13,0.00013698,2]
[329916905,1718830250963,-500.0,0.00013698,2]
[329916907,1718830250972,-500.0,0.00013698,2]
[329916909,1718830250984,-500.0,0.00013698,2]
[329916911,1718830250993,-500.0,0.00013698,2]
[329916913,1718830251002,-500.0,0.00013698,2]
[329916915,1718830251011,-500.0,0.00013698,2]
[329916917,1718830251021,-500.0,0.00013698,2]
[329916919,1718830251030,-1274.32,0.00013698,2]
[329916921,1718830251039,-500.0,0.00013698,2]
[329916923,1718830251049,-151.0,0.00013698,2]
[329916925,1718830251058,-500.0,0.00013698,2]
[329916927,1718830251068,-500.0,0.00013698,2]
[329916929,1718830251077,-151.0,0.00013698,2]
[329916931,1718830251087,-500.0,0.00013698,2]
[329916933,1718830251096,-500.0,0.00013698,2]
[329916935,1718830251105,-500.0,0.00013698,2]
[329916937,1718830251114,-151.0,0.00013698,2]
[329916939,1718830251123,-151.0,0.00013698,2]
[329916941,1718830251133,-151.0,0.00013698,2]
[329916943,1718830251142,-500.67904882,0.00013698,2]
[329916945,1718830251151,-500.0,0.00013698,2]
[329916947,1718830251161,-2085.15,0.00013698,2]
[329916949,1718830251171,-500.0,0.00013698,2]
[329916951,1718830251180,-500.0,0.00013698,2]
[329916953,1718830251189,-500.0,0.00013698,2]
[329916955,1718830251199,-939.34,0.00013698,2]
[329916957,1718830251209,-500.0,0.00013698,2]
[329916959,1718830251218,-500.0,0.00013698,2]
[329916961,1718830251226,-500.0,0.00013698,2]
[329916963,1718830251236,-500.0,0.00013698,2]
[329916965,1718830251245,-500.0,0.00013698,2]
[329916967,1718830251254,-500.0,0.00013698,2]
[329916970,1718830251265,-500.0,0.00013698,2]
[329916972,1718830251274,-151.0,0.00013698,2]
[329916974,1718830251283,-151.0,0.00013698,2]
[329916976,1718830251293,-155.63445459,0.00013698,2]
[329916978,1718830251302,-500.0,0.00013698,2]
[329916979,1718830251311,-152.367276,0.00013698,2]
[329916980,1718830251322,-500.0,0.00013698,2]
[329916981,1718830251331,-151.0,0.00013698,2]
[329916982,1718830251340,-250.618395,0.00013698,2]
[329916983,1718830251350,-500.0,0.00013698,2]
[329916984,1718830251359,-500.0,0.00013698,2]
[329916985,1718830251370,-500.0,0.00013698,2]
[329916986,1718830251379,-500.0,0.00013698,2]
[329916987,1718830251388,-2197.57,0.00013698,2]
[329916988,1718830251398,-500.0,0.00013698,2]
[329916989,1718830251407,-500.0,0.00013698,2]
[329916990,1718830251417,-1453.45,0.00013698,2]
[329916991,1718830251427,-517.3,0.00013698,2]
[329916992,1718830251438,-841.68,0.00013698,2]
[329916993,1718830251449,-500.0,0.00013698,2]
[329916994,1718830251458,-500.0,0.00013698,2]
[329916995,1718830251468,-500.0,0.00013698,2]
[329916996,1718830251478,-500.0,0.00013698,2]
[329916997,1718830251488,-500.0,0.00013698,2]
[329916998,1718830251500,-500.0,0.00013698,2]
[329916999,1718830251513,-500.0,0.00013698,2]
[329917000,1718830251523,-595.9,0.00013698,2]
[329917001,1718830251534,-500.0,0.00013698,2]
[329917002,1718830251544,-500.0,0.00013698,2]
[329917003,1718830251553,-500.0,0.00013698,2]
[329917004,1718830251563,-500.0,0.00013698,2]
[329917005,1718830251574,-500.0,0.00013698,2]
[329917006,1718830251584,-500.0,0.00013698,2]
[329917007,1718830251594,-500.0,0.00013698,2]
[329917008,1718830251603,-500.0,0.00013698,2]
[329917009,1718830251612,-500.0,0.00013698,2]
[329917010,1718830251622,-500.0,0.00013698,2]
[329917011,1718830251632,-200.80166259,0.00013698,2]
[329917012,1718830251642,-500.0,0.00013698,2]
[329917013,1718830251653,-500.0,0.00013698,2]
[329917014,1718830251663,-189.55527214,0.00013698,2]
[329917015,1718830251673,-1214.34,0.00013698,2]
[329917016,1718830251683,-507.26929419,0.00013698,2]
[329917017,1718830251693,-500.0,0.00013698,2]
[329917018,1718830251705,-1607.78,0.00013698,2]
[329917019,1718830251715,-676.12,0.00013698,2]
[329917020,1718830251724,-500.78436578,0.00013698,2]
[329917021,1718830251734,-500.0,0.00013698,2]
[329917022,1718830251744,-500.0,0.00013698,2]
[329917023,1718830251753,-604.86,0.00013698,2]
[329917024,1718830251763,-500.0,0.00013698,2]
[329917025,1718830251772,-500.0,0.00013698,2]
[329917026,1718830251782,-1383.06,0.00013698,2]
[329917027,1718830251792,-502.28243905,0.00013698,2]
[329917028,1718830251802,-500.0,0.00013698,2]
[329917029,1718830251812,-500.0,0.00013698,2]
[329917030,1718830251823,-500.0,0.00013698,2]
[329917031,1718830251832,-500.0,0.00013698,2]
[329917032,1718830251842,-151.0,0.00013698,2]
[329917033,1718830251851,-151.0,0.00013698,2]
[329917035,1718830251860,-500.0,0.00013698,2]
[329917036,1718830251869,-151.0,0.00013698,2]
[329917037,1718830251879,-80.03585663,0.00013698,2]
[329917038,1718830251987,-70.96414337,0.00013698,2]
[329917039,1718830251996,-152.029993,0.00013698,2]
[329917040,1718830252006,-151.0,0.00013698,2]
[329917041,1718830252016,-151.0,0.00013698,2]
[329917042,1718830252026,-500.0,0.00013698,2]
[329917043,1718830252035,-151.0,0.00013698,2]
[329917044,1718830252045,-151.0,0.00013698,2]
[329917045,1718830252055,-500.0,0.00013698,2]
[329917046,1718830252065,-848.16,0.00013698,2]
[329917047,1718830252077,-151.0,0.00013698,2]
[329917048,1718830252087,-932.67,0.00013698,2]
[329917049,1718830252096,-500.0,0.00013698,2]
[329917050,1718830252106,-500.0,0.00013698,2]
[329917051,1718830252116,-500.0,0.00013698,2]
[329917052,1718830252126,-151.0,0.00013698,2]
[329917053,1718830252136,-500.0,0.00013698,2]
[329917054,1718830252146,-761.73183839,0.00013698,2]
[329917055,1718830252204,-425.24816161,0.00013698,2]
[329917056,1718830252214,-151.0,0.00013698,2]
[329917057,1718830252224,-2209.48,0.00013698,2]
[329917058,1718830252234,-151.0,0.00013698,2]
[329917059,1718830252243,-500.0,0.00013698,2]
[329917060,1718830252252,-500.0,0.00013698,2]
[329917061,1718830252262,-500.0,0.00013698,2]
[329917062,1718830252272,-500.0,0.00013698,2]
[329917063,1718830252281,-500.0,0.00013698,2]
[329917064,1718830252291,-500.0,0.00013698,2]
[329917065,1718830252302,-1254.47,0.00013698,2]
[329917066,1718830252311,-500.0,0.00013698,2]
[329917067,1718830252324,-151.728041,0.00013698,2]
[329917068,1718830252334,-500.0,0.00013698,2]
[329917069,1718830252345,-500.0,0.00013698,2]
[329917070,1718830252355,-500.0,0.00013698,2]
[329917071,1718830252364,-500.0,0.00013698,2]
[329917072,1718830252374,-341.98693698,0.00013698,2]
[329917073,1718830252387,-158.01306302,0.00013698,2]
[329917074,1718830252397,-500.0,0.00013698,2]
[329917075,1718830252408,-500.0,0.00013698,2]
[329917076,1718830252417,-500.0,0.00013698,2]
[329917077,1718830252427,-644.37,0.00013698,2]
[329917078,1718830252437,-500.0,0.00013698,2]
[329917079,1718830252448,-287.33566714,0.00013698,2]
[329917080,1718830252458,-500.0,0.00013698,2]
[329917081,1718830252467,-808.68,0.00013698,2]
[329917082,1718830252477,-500.0,0.00013698,2]
[329917083,1718830252487,-500.0,0.00013698,2]
[329917084,1718830252496,-500.0,0.00013698,2]
[329917085,1718830252506,-500.0,0.00013698,2]
[329917086,1718830252515,-151.0,0.00013698,2]
[329917087,1718830252525,-151.0,0.00013698,2]
[329917088,1718830252534,-730.76,0.00013698,2]
[329917089,1718830252544,-151.0,0.00013698,2]
[329917090,1718830252554,-500.0,0.00013698,2]
[329917091,1718830252563,-274.0,0.00013698,2]
[329917092,1718830252576,-502.71292645,0.00013698,2]
[329917093,1718830252585,-500.31386637,0.00013698,2]
[329917094,1718830252594,-1565.56,0.00013698,2]
[329917095,1718830252603,-500.0,0.00013698,2]
[329917096,1718830252612,-1544.2,0.00013698,2]
[329917097,1718830252622,-500.0,0.00013698,2]
[329917098,1718830252631,-500.0,0.00013698,2]
[329917099,1718830252641,-466.09960921,0.00013698,2]
[329917100,1718830252663,-33.90039079,0.00013698,2]
[329917101,1718830252673,-375.14066525,0.00013698,2]
[329917102,1718830252697,-124.85933475,0.00013698,2]
[329917103,1718830252706,-151.0,0.00013698,2]
[329917104,1718830252716,-151.0,0.00013698,2]
[329917105,1718830252726,-500.0,0.00013698,2]